[Event "TUR-ch Youth U14 2019"]
[Site "Belek"]
[Date "2019.01.21"]
[Round "2"]
[White "Tanir, Simay"]
[Black "Tikvesli, Ceylin"]
[Result "0-1"]
[ECO "D36"]
[WhiteElo "1333"]
[BlackElo "1677"]
[Annotator "NA"]
[PlyCount "110"]
[EventDate "2019.01.20"]
[EventType "swiss"]
[EventCountry "TUR"]
[SourceTitle "playchess.com"]
[Source "ChessBase"]
[SourceQuality "1"]
[TimeControl "5400+30"]

1. d4 Nf6 2. c4 e6 3. Nc3 d5 4. cxd5 exd5 5. Bg5 Be7 6. e3 c6 7. Bd3 Nbd7 8. Qc2 h6 9. Bf4 O-O 10. Nf3 a5 11. O-O Nh5 12. Be5 Nxe5 13. Nxe5 Nf6 14. Na4 Bd6 15. f4 Ng4 16. Rf3 Nxe5 17. fxe5 Be7 {[%emt 0:38:30]} 18. Nc5 {[%emt 0:49:00]} b6 {[%emt 0:06:30]} 19. Na4 {[%emt 0:03:30]} Bd7 {[%emt 0:01:30]} 20. e4 {[%emt 0:05:30]} Rc8 {[%emt 0:17:30]} 21. Ba6 {[%emt 0:05:30]} Rb8 {[%emt 0:00:30]} 22. exd5 {[%emt 0:07:30]} cxd5 {[%emt 0:01:30]} 23. Nc3 {[%emt 0:10:56]} Bc6 {[%emt 0:06:30]} 24. Qe2 {[%emt 0:02:50]} Bb4 {[%emt 0:11:11]} 25. Bd3 {[%emt 0:03:13]} Bxc3 {[%emt 0:04:54]} 26. bxc3 {[%emt 0:00:10]} b5 {[%emt 0:00:49]} 27. e6 {[%emt 0:03:51]} Qe7 {[%emt 0:02:11]} 28. exf7+ {[%emt 0:07:36]} Rxf7 {[%emt 0:00:11]} 29. Rxf7 {[%emt 0:00:26]} Qxf7 {[%emt 0:00:36]} 30. Rf1 {[%emt 0:00:38]} Qe8 {[%emt 0:01:19]} 31. Qf3 {[%emt 0:01:24]} Rb7 {[%emt 0:01:37]} 32. Qf5 {[%emt 0:00:41]} g6 {[%emt 0:04:36]} 33. Qxg6+ {[%emt 0:01:16]} Qxg6 {[%emt 0:00:30]} 34. Bxg6 {[%emt 0:00:30]} Kg7 {[%emt 0:00:00]} 35. Bc2 {[%emt 0:00:00]} b4 {[%emt 0:00:33]} 36. Rf3 {[%emt 0:01:01]} a4 {[%emt 0:01:54]} 37. cxb4 {[%emt 0:00:43]} Rxb4 {[%emt 0:00:20]} 38. Rg3+ {[%emt 0:01:43]} Kf7 {[%emt 0:00:10]} 39. Rg6 {[%emt 0:00:00]} Rc4 {[%emt 0:00:26]} 40. Bf5 {[%emt 0:00:26]} Bd7 {[%emt 0:01:55]} 41. Bd3 {[%emt 0:01:13]} Rxd4 {[%emt 0:00:26]} 42. Rg3 {[%emt 0:00:23]} Rb4 {[%emt 0:01:05]} 43. Rf3+ {[%emt 0:00:45]} Ke7 {[%emt 0:00:23]} 44. Re3+ {[%emt 0:00:34]} Kd6 {[%emt 0:00:42]} 45. Kf2 {[%emt 0:00:05]} d4 {[%emt 0:00:31]} 46. Re2 {[%emt 0:00:12]} Be6 {[%emt 0:00:00]} 47. Kf3 {[%emt 0:00:31]} a3 {[%emt 0:00:51]} 48. Ke4 {[%emt 0:00:32]} Bd5+ {[%emt 0:00:38]} 49. Kf5 {[%emt 0:00:17]} Rb2 {[%emt 0:00:19]} 50. Rxb2 {[%emt 0:01:36]} axb2 {[%emt 0:00:02]} 51. a4 {[%emt 0:00:15]} Bxg2 {[%emt 0:02:11]} 52. a5 {[%emt 0:00:26]} Bf1 {[%emt 0:01:32]} 53. Bb1 {[%emt 0:00:22]} d3 {[%emt 0:00:21]} 54. a6 {[%emt 0:00:30]} Kc7 {[%emt 0:00:27]} 55. Ba2 {[%emt 0:01:09]} Kb6 {[%emt 0:00:09]} 0-1

[Event "TUR-ch Youth U14 2019"]
[Site "Belek"]
[Date "2019.01.21"]
[Round "2"]
[White "Nural, Polen"]
[Black "Kara, Gulce Nehir"]
[Result "0-1"]
[ECO "D37"]
[WhiteElo "1248"]
[BlackElo "1702"]
[Annotator "NA"]
[PlyCount "54"]
[EventDate "2019.01.20"]
[EventType "swiss"]
[EventCountry "TUR"]
[SourceTitle "playchess.com"]
[Source "ChessBase"]
[SourceQuality "1"]
[TimeControl "5400+30"]

1. d4 d5 2. c4 e6 3. Nc3 Nf6 4. Nf3 Be7 5. Bf4 a6 6. cxd5 exd5 7. e3 Bf5 8. Be2 O-O 9. O-O Re8 10. h3 h6 11. Rc1 {[%emt 0:36:30]} c6 {[%emt 1:00:30]} 12. Na4 {[%emt 0:13:30]} Nbd7 {[%emt 0:06:30]} 13. a3 {[%emt 0:15:30]} Ne4 {[%emt 0:04:30]} 14. b4 {[%emt 0:05:30]} a5 {[%emt 0:01:30]} 15. Nc5 {[%emt 0:08:57]} axb4 {[%emt 0:02:30]} 16. axb4 {[%emt 0:00:39]} Qb6 {[%emt 0:03:45]} 17. Nxd7 {[%emt 0:12:17]} Bxd7 {[%emt 0:00:07]} 18. Ne5 {[%emt 0:00:02]} Be6 {[%emt 0:02:54]} 19. f3 {[%emt 0:02:12]} Nd6 {[%emt 0:00:58]} 20. Rb1 {[%emt 0:01:55]} Ra2 {[%emt 0:03:40]} 21. Bd3 {[%emt 0:01:50]} Rea8 {[%emt 0:00:48]} 22. Bg3 {[%emt 0:01:05]} Nc4 {[%emt 0:01:09]} 23. Bxc4 {[%emt 0:01:05]} dxc4 {[%emt 0:00:03]} 24. Be1 {[%emt 0:00:00]} R8a4 {[%emt 0:03:35]} 25. e4 {[%emt 0:00:47]} Bxb4 {[%emt 0:01:09]} 26. f4 {[%emt 0:00:27]} f5 {[%emt 0:08:05]} 27. Bxb4 {[%emt 0:00:52]} Rxb4 {[%emt 0:00:00]} 0-1

[Event "TUR-ch Youth U14 2019"]
[Site "Belek"]
[Date "2019.01.21"]
[Round "3"]
[White "Danaci, Ege"]
[Black "Yagci, Yusuf Batin"]
[Result "1-0"]
[ECO "B24"]
[WhiteElo "2143"]
[BlackElo "1635"]
[Annotator "NA"]
[PlyCount "99"]
[EventDate "2019.01.20"]
[EventType "swiss"]
[EventCountry "TUR"]
[SourceTitle "playchess.com"]
[Source "ChessBase"]
[SourceQuality "1"]
[TimeControl "5400+30"]

1. e4 {[%emt 1:30:30]} c5 {[%emt 0:01:30]} 2. Nc3 {[%emt 0:00:00]} Nc6 {[%emt 0:00:30]} 3. g3 {[%emt 0:00:00]} g6 {[%emt 0:00:30]} 4. Bg2 {[%emt 0:00:00]} Bg7 {[%emt 0:00:30]} 5. d3 {[%emt 0:00:00]} e6 {[%emt 0:00:30]} 6. Be3 {[%emt 0:00:00]} Nd4 {[%emt 0:01:30]} 7. Nce2 {[%emt 0:00:00]} d6 {[%emt 0:02:30]} 8. c3 {[%emt 0:00:00]} Nc6 {[%emt 0:01:30] B24: Closed Sicilian: 3 g3 sidelines} 9. d4 {[%emt 0:00:00]} cxd4 {[%emt 0:01:30]} 10. Nxd4 {[%emt 0:00:00]} a6 {[%emt 0:03:30]} 11. Nge2 {[%emt 0:00:00]} Nge7 {[%emt 0:00:30]} 12. O-O {[%emt 0:00:00]} O-O {[%emt 0:00:30]} 13. f4 $146 {[%emt 0:00:00]} ({Predecessor:} 13. Qc2 Qc7 14. Rad1 Nxd4 15. Nxd4 e5 16. Nf3 {0-1 (32) Mork,K (2345)-Becerra Rivero,J (2485) Linares 1999}) 13... Qc7 {[%emt 0:04:30]} 14. Nxc6 {[%emt 0:00:00]} bxc6 {[%emt 0:01:30]} 15. Nd4 {[%emt 0:00:00]} Rb8 {[%emt 0:05:30]} 16. Qd2 {[%emt 0:00:00]} Rd8 {[%emt 0:05:30]} 17. Rad1 {[%emt 0:00:00]} a5 {[%emt 0:04:30]} 18. Rf2 {[%emt 0:00:00]} c5 {[%emt 0:05:30]} 19. Nb3 {[%emt 0:00:00]} Ba6 {[%emt 0:02:30]} 20. Qe1 {[%emt 0:00:00]} a4 {[%emt 0:02:30]} 21. Nc1 {[%emt 0:00:00]} a3 {[%emt 0:05:30]} 22. bxa3 {[%emt 0:00:00]} Qa5 {[%emt 0:01:30]} (22... Bc4 $17) 23. e5 {[%emt 0:00:00]} Nf5 {[%emt 0:04:30]} 24. Nb3 {[%emt 0:00:00]} Qxa3 {[%emt 0:02:30]} 25. Bc1 {[%emt 0:00:00]} Qa4 {[%emt 0:00:30]} 26. exd6 {[%emt 0:00:00]} Rxb3 {[%emt 0:13:30]} 27. axb3 {[%emt 0:00:00]} Qxb3 {[%emt 0:00:30]} 28. d7 {[%emt 0:00:00]} Bxc3 {[%emt 0:03:30]} 29. Rf3 {[%emt 0:00:00]} Bxe1 {[%emt 0:01:30]} 30. Rxb3 {[%emt 0:00:00]} Bb4 {[%emt 0:00:00]} 31. Bb2 {[%emt 0:00:00]} Bb5 {[%emt 0:03:00]} 32. g4 {[%emt 0:00:00]} Nh6 {[%emt 0:05:31]} 33. Bf6 {[%emt 0:00:00]} Rxd7 {[%emt 0:00:09]} 34. Rxd7 {[%emt 0:00:00]} Bxd7 {[%emt 0:00:06]} 35. Rd3 {[%emt 0:00:00]} Nxg4 {[%emt 0:03:00]} 36. Ba1 {[%emt 0:00:00]} c4 {[%emt 0:01:26]} 37. Rxd7 {[%emt 0:00:00]} Bc5+ {[%emt 0:00:00]} 38. Kf1 {[%emt 0:00:00]} Ne3+ {[%emt 0:00:16]} 39. Ke2 {[%emt 0:00:00]} Nxg2 {[%emt 0:00:10]} 40. Rd8+ {[%emt 0:00:00]} Bf8 {[%emt 0:00:02]} 41. Be5 {[%emt 0:00:00]} g5 {[%emt 0:00:54]} 42. fxg5 {[%emt 0:00:00]} Nh4 {[%emt 0:00:10]} 43. Bd6 {[%emt 0:00:00]} Ng6 {[%emt 0:00:06]} 44. h4 {[%emt 0:00:00]} Kg7 {[%emt 0:00:09]} 45. h5 {[%emt 0:00:00]} h6 {[%emt 0:02:04]} 46. gxh6+ {[%emt 0:00:00]} Kxh6 {[%emt 0:00:23]} 47. hxg6 {[%emt 0:00:00]} Bxd6 {[%emt 0:00:08]} 48. gxf7 {[%emt 0:00:00]} Kg7 {[%emt 0:00:15]} 49. Rxd6 {[%emt 0:00:00]} Kxf7 {[%emt 0:00:03]} 50. Rc6 {[%emt 0:00:00]} 1-0

[Event "TUR-ch Youth U14 2019"]
[Site "Belek"]
[Date "2019.01.21"]
[Round "3"]
[White "Hatirli, Ugur Can"]
[Black "Bicer, Atakan Mert"]
[Result "0-1"]
[ECO "D78"]
[WhiteElo "1713"]
[BlackElo "1854"]
[Annotator "NA"]
[PlyCount "114"]
[EventDate "2019.01.20"]
[EventType "swiss"]
[EventCountry "TUR"]
[SourceTitle "playchess.com"]
[Source "ChessBase"]
[SourceQuality "1"]
[TimeControl "5400+30"]

1. d4 {[%emt 1:30:30]} Nf6 {[%emt 1:30:30]} 2. Nf3 {[%emt 0:00:30]} g6 {[%emt 0:00:30]} 3. g3 {[%emt 0:00:30]} Bg7 {[%emt 0:00:30]} 4. Bg2 {[%emt 0:00:30]} O-O {[%emt 0:00:30]} 5. O-O {[%emt 0:00:30]} d5 {[%emt 0:00:30]} 6. c4 {[%emt 0:00:30]} c6 {[%emt 0:00:30]} 7. b3 {[%emt 0:00:30]} Ne4 {[%emt 0:00:00]} 8. Bb2 {[%emt 0:00:00]} dxc4 {[%emt 0:00:00] D78: Fianchetto Grünfeld: 6 0-0 c6} (8... Bf5 9. e3 Nd7 10. Qe2 a5 11. Nc3 e6 12. Nh4 Nxc3 13. Bxc3 a4 14. Nxf5 gxf5 15. cxd5 cxd5 16. Rfb1 Qc7 {½-½ (33) Oparin,G (2624)-Esipenko,A (2609) Sochi 2018}) 9. bxc4 {[%emt 0:00:00]} Nd6 {[%emt 0:00:00]} 10. Nfd2 $146 {[%emt 0:00:00]} ({Predecessor:} 10. Qc1 Qa5 11. Nbd2 Qh5 12. a4 Bh3 13. c5 Ne8 14. Nc4 Bxg2 15. Kxg2 Nd7 16. h3 {1-0 (53) Foisor,C (2386)-Zinani,A (2201) Milan 2000}) 10... c5 {[%emt 0:00:00]} 11. e3 {[%emt 0:00:00]} Nc6 {[%emt 0:00:00]} 12. Bxc6 {[%emt 0:00:00]} bxc6 {[%emt 0:00:00]} 13. Na3 {[%emt 0:00:00]} cxd4 {[%emt 0:00:00]} 14. Bxd4 {[%emt 0:00:00]} e5 {[%emt 0:00:00]} 15. Bc5 {[%emt 0:00:00]} Nb7 {[%emt 0:00:00]} ({Black should try} 15... Bh3 $15 16. Re1 Qc7) 16. Bxf8 {[%emt 0:00:00]} Bxf8 {[%emt 0:00:00]} 17. Nc2 {[%emt 0:00:00]} Bh3 {[%emt 0:00:00]} 18. Re1 {[%emt 0:00:00]} Nc5 {[%emt 0:00:00]} 19. Qe2 {[%emt 0:00:00]} Nd3 {[%emt 0:00:00]} 20. Red1 {[%emt 0:00:00]} Nb2 {[%emt 0:00:00]} 21. Rdb1 {[%emt 0:00:00]} Nd3 {[%emt 0:00:00]} 22. Rb3 {[%emt 0:00:00]} Nc5 {[%emt 0:00:00]} 23. Rbb1 {[%emt 0:00:00]} Be6 {[%emt 0:00:00]} 24. Nb4 {[%emt 0:00:00]} a5 {[%emt 0:00:00]} 25. Nc2 {[%emt 0:00:00]} f5 {[%emt 0:00:00]} 26. Rd1 {[%emt 0:00:00]} Qc7 {[%emt 0:00:00]} 27. Ne1 {[%emt 0:00:00]} Na4 {[%emt 0:00:00]} 28. Rdc1 {[%emt 0:00:00]} e4 {[%emt 0:00:00]} 29. Nb3 {[%emt 0:00:00]} c5 {[%emt 0:00:00]} 30. Qd2 {[%emt 0:00:00]} Qa7 {[%emt 0:00:00]} 31. Rc2 {[%emt 0:00:00]} Nb6 {[%emt 0:00:00]} 32. Qe2 {[%emt 0:00:00]} Qf7 {[%emt 0:00:00]} 33. Nd2 {[%emt 0:00:00]} Nd7 {[%emt 0:01:02]} 34. f3 {[%emt 0:00:00]} Nf6 {[%emt 0:01:29]} 35. fxe4 {[%emt 0:00:00]} fxe4 {[%emt 0:00:10]} 36. Ng2 {[%emt 0:00:00]} g5 {[%emt 0:01:40]} 37. Rf1 {[%emt 0:00:00]} Qg6 {[%emt 0:00:05]} 38. Nb1 {[%emt 0:00:00]} Ng4 {[%emt 0:01:12]} 39. Nc3 {[%emt 0:00:00]} Ne5 {[%emt 0:01:16]} 40. Nd5 {[%emt 0:00:00]} Nf3+ {[%emt 0:00:31]} 41. Kh1 {[%emt 0:00:00]} Bd6 {[%emt 0:01:28]} 42. Qd1 {[%emt 0:00:00]} Rd8 $16 {[%emt 0:01:35]} ({Reject} 42... Qh6 $6 43. Ne1 $16) (42... Rf8 $1 $11) 43. Rcf2 {[%emt 0:00:00]} Bg4 {[%emt 0:00:38]} 44. Qa1 {[%emt 0:00:00]} Rf8 {[%emt 0:00:11]} 45. Ne1 {[%emt 0:00:00]} Rf7 {[%emt 0:01:13]} 46. Nxf3 {[%emt 0:00:00]} Bxf3+ {[%emt 0:00:53]} 47. Rxf3 {[%emt 0:00:00]} exf3 {[%emt 0:00:16]} 48. Qb1 {[%emt 0:00:00]} Qh5 {[%emt 0:01:49]} 49. Qe1 {[%emt 0:00:00]} Qg4 {[%emt 0:01:13]} 50. e4 {[%emt 0:00:00]} Be5 {[%emt 0:00:47]} 51. Qe3 {[%emt 0:00:00]} Bd4 {[%emt 0:00:26]} 52. Qd3 {[%emt 0:00:00]} Qh3 {[%emt 0:00:25]} 53. Rxf3 {[%emt 0:01:00]} Rb7 {[%emt 0:00:50]} 54. Nf6+ {[%emt 0:04:51]} Kg7 {[%emt 0:02:55]} 55. Ne8+ {[%emt 0:00:30]} Kh6 {[%emt 0:00:30]} 56. Qf1 {[%emt 0:00:30]} Qe6 {[%emt 0:00:30]} 57. Nf6 {[%emt 0:00:30]} Kg6 {[%emt 0:00:57]} 0-1

[Event "TUR-ch Youth U14 2019"]
[Site "Belek"]
[Date "2019.01.21"]
[Round "3"]
[White "Kara, Gulce Nehir"]
[Black "Eraslan, Yagmur"]
[Result "1/2-1/2"]
[ECO "B40"]
[WhiteElo "1702"]
[BlackElo "1567"]
[Annotator "NA"]
[PlyCount "74"]
[EventDate "2019.01.20"]
[EventType "swiss"]
[EventCountry "TUR"]
[SourceTitle "playchess.com"]
[Source "ChessBase"]
[SourceQuality "1"]
[TimeControl "5400+30"]

1. e4 {[%emt 0:00:30]} c5 {[%emt 0:00:30]} 2. Nf3 {[%emt 0:00:30]} e6 {[%emt 0:00:30]} 3. b3 {[%emt 0:00:00]} b6 {[%emt 0:00:00]} 4. Bb2 {[%emt 0:00:00]} Bb7 {[%emt 0:00:00]} 5. Nc3 {[%emt 0:00:30]} Nf6 {[%emt 0:01:30]} 6. e5 {[%emt 0:03:30]} Ne4 {[%emt 0:07:30]} 7. Bd3 {[%emt 0:04:30]} Nxc3 {[%emt 0:00:30]} 8. Bxc3 {[%emt 0:00:30]} Be7 {[%emt 0:01:30]} 9. O-O {[%emt 0:01:30]} O-O {[%emt 0:00:30]} 10. Qe2 {[%emt 0:02:30]} Nc6 {[%emt 0:04:30]} 11. a3 {[%emt 0:03:30]} Qc7 {[%emt 0:07:30]} 12. Qe4 {[%emt 0:03:30]} g6 {[%emt 0:00:30]} 13. Qg4 {[%emt 0:00:30]} Rfe8 {[%emt 0:08:30]} 14. h4 {[%emt 0:03:30]} d5 {[%emt 0:13:30]} 15. exd6 {[%emt 0:01:30]} Qxd6 {[%emt 0:00:30]} 16. Rfe1 {[%emt 0:14:30]} Bf8 {[%emt 0:00:30]} 17. h5 {[%emt 0:02:30]} e5 {[%emt 0:01:30]} 18. hxg6 {[%emt 0:10:30]} hxg6 {[%emt 0:00:30]} 19. Ng5 {[%emt 0:05:30]} Bh6 {[%emt 0:05:30]} 20. Bc4 {[%emt 0:11:30]} Bxg5 {[%emt 0:14:30]} 21. Qxg5 {[%emt 0:00:30]} Nd4 {[%emt 0:00:00]} 22. Rac1 {[%emt 0:08:30]} Kg7 {[%emt 0:06:00]} 23. Bxd4 {[%emt 0:04:15]} exd4 {[%emt 0:00:30]} 24. f4 {[%emt 0:01:54]} Qf6 {[%emt 0:10:02]} 25. Qg3 {[%emt 0:01:50]} Re4 {[%emt 0:04:22]} 26. Rxe4 {[%emt 0:01:39]} Bxe4 {[%emt 0:00:01]} 27. Be2 {[%emt 0:03:28]} Rh8 {[%emt 0:01:56]} 28. d3 {[%emt 0:03:29]} Bd5 {[%emt 0:01:20]} 29. Bf3 {[%emt 0:02:03]} Bxf3 {[%emt 0:01:18]} 30. Qxf3 {[%emt 0:00:06]} Qh4 {[%emt 0:00:51]} 31. Rf1 {[%emt 0:00:57]} Re8 {[%emt 0:01:05]} 32. f5 {[%emt 0:01:48]} Qf6 {[%emt 0:04:11]} 33. Qg4 {[%emt 0:01:52]} Re5 {[%emt 0:02:07]} 34. fxg6 {[%emt 0:00:46]} Qxg6 {[%emt 0:00:10]} 35. Qf4 {[%emt 0:02:33]} Re2 {[%emt 0:01:01]} 36. Rf2 {[%emt 0:00:01]} Re1+ {[%emt 0:00:41]} 37. Rf1 {[%emt 0:00:01]} Re2 {[%emt 0:00:00]} 1/2-1/2

[Event "TUR-ch Youth U14 2019"]
[Site "Belek"]
[Date "2019.01.21"]
[Round "3"]
[White "Tikvesli, Ceylin"]
[Black "Yazici, Betul"]
[Result "1-0"]
[ECO "D02"]
[WhiteElo "1677"]
[BlackElo "1268"]
[Annotator "NA"]
[PlyCount "71"]
[EventDate "2019.01.20"]
[EventType "swiss"]
[EventCountry "TUR"]
[SourceTitle "playchess.com"]
[Source "ChessBase"]
[SourceQuality "1"]
[TimeControl "5400+30"]

1. d4 {[%emt 0:00:30]} Nf6 {[%emt 0:00:30]} 2. Nf3 {[%emt 0:00:30]} d5 {[%emt 0:00:30]} 3. Bf4 {[%emt 0:00:00]} e6 {[%emt 0:02:30]} 4. e3 {[%emt 0:00:00]} Nc6 {[%emt 0:00:30]} 5. Nbd2 {[%emt 0:02:30]} Bd6 {[%emt 0:03:30]} 6. Bxd6 {[%emt 0:01:30]} cxd6 {[%emt 0:02:30]} 7. c4 {[%emt 0:01:30]} dxc4 {[%emt 0:01:30]} 8. Bxc4 {[%emt 0:05:30]} d5 {[%emt 0:02:30]} 9. Bd3 {[%emt 0:03:30]} Qe7 {[%emt 0:14:30]} 10. a3 {[%emt 0:01:30]} Bd7 {[%emt 0:03:30]} 11. O-O {[%emt 0:03:30]} O-O {[%emt 0:01:30]} 12. Qe2 {[%emt 0:02:30]} Rac8 {[%emt 0:05:30]} 13. Rfc1 {[%emt 0:00:30]} Rfe8 {[%emt 0:03:30]} 14. b4 {[%emt 0:01:30]} a6 {[%emt 0:02:30]} 15. Nb3 {[%emt 0:02:30]} Rb8 {[%emt 0:04:30]} 16. Nc5 {[%emt 0:00:30]} Bc8 {[%emt 0:02:30]} 17. Nxa6 {[%emt 0:00:30]} bxa6 {[%emt 0:00:30]} 18. Rxc6 {[%emt 0:00:30]} Bb7 {[%emt 0:00:30]} 19. Rc2 {[%emt 0:00:30]} Qd6 {[%emt 0:00:30]} 20. Rac1 {[%emt 0:04:30]} Rec8 {[%emt 0:04:30]} 21. Ne5 {[%emt 0:02:30]} g6 {[%emt 0:04:30]} 22. Rc5 {[%emt 0:02:30]} Rxc5 {[%emt 0:03:30]} 23. bxc5 {[%emt 0:00:30]} Rc8 {[%emt 0:04:30]} 24. Rb1 {[%emt 0:02:30]} Qc7 {[%emt 0:00:30]} 25. Bxa6 {[%emt 0:02:30]} Bxa6 {[%emt 0:01:30]} 26. Qxa6 {[%emt 0:00:00]} Rf8 {[%emt 0:01:30]} 27. Rb7 {[%emt 0:00:00]} Qc8 {[%emt 0:01:30]} 28. c6 {[%emt 0:01:30]} Ne4 {[%emt 0:08:30]} 29. Nd7 {[%emt 0:03:30]} Rd8 {[%emt 0:03:21]} 30. Qb6 {[%emt 0:03:30]} Qa8 {[%emt 0:04:17]} 31. c7 {[%emt 0:00:30]} Rc8 {[%emt 0:02:23]} 32. Ra7 {[%emt 0:00:30]} Qxa7 {[%emt 0:01:10]} 33. Qxa7 {[%emt 0:00:30]} Nd6 {[%emt 0:00:00]} 34. Qb6 {[%emt 0:00:30]} Ne8 {[%emt 0:00:28]} 35. Qb8 {[%emt 0:00:30]} Rxb8 {[%emt 0:00:08]} 36. cxb8=Q {[%emt 0:00:00]} 1-0

[Event "TUR-ch Youth U14 2019"]
[Site "Belek"]
[Date "2019.01.21"]
[Round "3"]
[White "Akbay, Samet"]
[Black "Bozyaka, Altug"]
[Result "0-1"]
[ECO "B23"]
[WhiteElo "1657"]
[BlackElo "1600"]
[Annotator "NA"]
[PlyCount "74"]
[EventDate "2019.01.20"]
[EventType "swiss"]
[EventCountry "TUR"]
[SourceTitle "playchess.com"]
[Source "ChessBase"]
[SourceQuality "1"]
[TimeControl "5400+30"]

1. e4 {[%emt 1:30:30]} c5 {[%emt 1:30:30]} 2. Nc3 {[%emt 0:00:30]} d6 {[%emt 0:00:30]} 3. f4 {[%emt 0:00:00]} Nc6 {[%emt 0:00:00]} 4. Nf3 {[%emt 0:00:00]} g6 {[%emt 0:00:00]} 5. Bc4 {[%emt 0:00:00]} Bg7 {[%emt 0:00:00]} 6. O-O {[%emt 0:00:00]} e6 {[%emt 0:00:00]} 7. d3 {[%emt 0:00:00]} Nge7 {[%emt 0:00:00]} 8. Qe1 {[%emt 0:00:00]} O-O {[%emt 0:00:00]} 9. Qh4 {[%emt 0:00:00]} Nd4 {[%emt 0:00:00]} 10. f5 {[%emt 0:00:00]} gxf5 {[%emt 0:00:00]} 11. Qh5 {[%emt 0:00:00]} Ng6 {[%emt 0:00:00]} 12. Ng5 {[%emt 0:00:00]} h6 {[%emt 0:00:00]} 13. exf5 {[%emt 0:00:00]} Nxf5 {[%emt 0:00:00]} 14. Rxf5 {[%emt 0:00:00]} exf5 {[%emt 0:00:00]} 15. Qxg6 {[%emt 0:00:00]} hxg5 {[%emt 0:00:00]} 16. Bxg5 {[%emt 0:00:00]} Qe8 {[%emt 0:00:00]} 17. Bf6 {[%emt 0:00:00]} Qe3+ {[%emt 0:00:00]} 18. Kh1 {[%emt 0:00:00]} Qh6 {[%emt 0:00:00]} 19. Qxh6 {[%emt 0:00:00]} Bxh6 {[%emt 0:00:00]} 20. Be7 {[%emt 0:00:00]} Re8 {[%emt 0:00:00]} 21. Nd5 {[%emt 0:00:00]} Bg7 {[%emt 0:04:44]} 22. Bxd6 {[%emt 0:06:01]} Rd8 {[%emt 0:01:34]} 23. Be7 {[%emt 0:00:56]} Rd7 {[%emt 0:01:44]} 24. Re1 {[%emt 0:00:07]} Rb8 {[%emt 0:01:47]} 25. Bxc5 {[%emt 0:01:29]} b6 {[%emt 0:00:30]} 26. Re8+ {[%emt 0:01:35]} Kh7 {[%emt 0:00:30]} 27. Bf8 {[%emt 0:00:00]} b5 {[%emt 0:00:36]} 28. Bb3 {[%emt 0:00:08]} a5 {[%emt 0:00:55]} 29. Ne7 {[%emt 0:01:43]} Bxf8 {[%emt 0:00:30]} 30. Nc6 {[%emt 0:01:07]} Rb6 {[%emt 0:00:37]} 31. Rxc8 {[%emt 0:00:45]} a4 {[%emt 0:00:23]} 32. Ne5 {[%emt 0:00:25]} Re7 {[%emt 0:00:33]} 33. Nf3 {[%emt 0:00:33]} axb3 {[%emt 0:00:26]} 34. Rxf8 {[%emt 0:00:05]} bxa2 {[%emt 0:00:41]} 35. Ra8 {[%emt 0:00:06]} Rbe6 {[%emt 0:00:23]} 36. Rxa2 {[%emt 0:01:23]} Re1+ {[%emt 0:00:22]} 37. Ng1 {[%emt 0:00:04]} Rb1 {[%emt 0:00:00]} 0-1

[Event "TUR-ch Youth U14 2019"]
[Site "Belek"]
[Date "2019.01.21"]
[Round "3"]
[White "Uysal, Ugur"]
[Black "Guler, Muhammed Talha"]
[Result "1-0"]
[ECO "D75"]
[WhiteElo "1585"]
[BlackElo "1816"]
[Annotator "NA"]
[PlyCount "75"]
[EventDate "2019.01.20"]
[EventType "swiss"]
[EventCountry "TUR"]
[SourceTitle "playchess.com"]
[Source "ChessBase"]
[SourceQuality "1"]
[TimeControl "5400+30"]

1. Nf3 {[%emt 1:30:30]} Nf6 {[%emt 1:30:30]} 2. d4 {[%emt 0:00:30]} g6 {[%emt 0:00:30]} 3. c4 {[%emt 0:00:30]} Bg7 {[%emt 0:00:30]} 4. g3 {[%emt 0:00:30]} d5 {[%emt 0:00:30]} 5. cxd5 {[%emt 0:00:30]} Nxd5 {[%emt 0:00:30]} 6. Bg2 {[%emt 0:00:00]} c5 {[%emt 0:00:00]} 7. O-O {[%emt 0:00:00]} O-O {[%emt 0:00:00] LiveBook: 211 Games} 8. dxc5 {[%emt 0:00:00]} Na6 {[%emt 0:00:00]} 9. c6 {[%emt 0:00:00]} bxc6 {[%emt 0:00:00]} 10. a3 {[%emt 0:00:00]} Nc5 {[%emt 0:00:00]} 11. Qc2 {[%emt 0:00:00]} Qb6 {[%emt 0:00:00]} 12. Nbd2 {[%emt 0:00:00]} Ba6 {[%emt 0:00:00]} 13. Re1 {[%emt 0:00:00]} Rac8 {[%emt 0:00:00]} 14. Rb1 {[%emt 0:00:00]} Ne6 {[%emt 0:00:00]} 15. e4 $11 {[%emt 0:00:00]} Nf6 {[%emt 0:00:00]} 16. Nc4 {[%emt 0:00:00]} Qc5 {[%emt 0:00:00]} 17. Bf1 {[%emt 0:00:00]} Ng4 {[%emt 0:00:00]} 18. b4 {[%emt 0:00:00]} Qh5 {[%emt 0:00:00]} 19. h3 {[%emt 0:00:00]} Nf6 {[%emt 0:00:00]} 20. g4 {[%emt 0:00:00]} Nxg4 {[%emt 0:00:00]} 21. hxg4 {[%emt 0:00:00]} Qxg4+ {[%emt 0:00:00]} 22. Bg2 {[%emt 0:00:00]} Bxc4 {[%emt 0:00:00]} 23. Qxc4 {[%emt 0:00:00]} c5 {[%emt 0:00:00]} 24. b5 {[%emt 0:00:00]} Nd4 {[%emt 0:00:00]} 25. Nxd4 {[%emt 0:00:00]} cxd4 {[%emt 0:00:00]} 26. Qe2 {[%emt 0:00:00]} Qxe2 {[%emt 0:00:00]} 27. Rxe2 {[%emt 0:00:00]} d3 {[%emt 0:00:00]} 28. Rd2 {[%emt 0:00:00]} Rfd8 {[%emt 0:00:00]} 29. Rd1 {[%emt 0:00:00]} Rc2 {[%emt 0:00:00]} 30. Bd2 {[%emt 0:00:00]} f5 {[%emt 0:01:41]} 31. a4 {[%emt 0:00:00]} Bb2 {[%emt 0:02:57]} 32. exf5 {[%emt 0:03:12]} gxf5 {[%emt 0:00:15]} 33. Bf1 {[%emt 0:04:12]} e5 {[%emt 0:00:49]} 34. Bc1 {[%emt 0:00:18]} Bd4 {[%emt 0:03:08]} 35. Rd2 {[%emt 0:03:59]} Bc3 {[%emt 0:03:20]} 36. Rxd3 {[%emt 0:00:28]} Rxd3 {[%emt 0:00:49]} 37. Bxd3 {[%emt 0:00:11]} Ra2 {[%emt 0:00:46]} 38. Bc4+ {[%emt 0:00:01]} 1-0